[Event "44th Chess Olympiad Women 2022"]
[Site "Chennai"]
[Date "2022.07.29"]
[Round "1.38"]
[White "Zahedifar, Anahita"]
[Black "Saraci, Nita"]
[Result "1-0"]
[WhiteElo "2160"]
[BlackElo "1555"]
[Annotator "RC"]
[PlyCount "95"]
[EventDate "2022.??.??"]
[TimeControl "60"]

1. d4 {[%emt 0:00:05]} d5 {[%emt 0:00:46]} 2. c4 {[%emt 0:00:05]} Nc6 {[%emt 0:
00:00]} 3. cxd5 {[%emt 0:02:20]} Qxd5 {[%emt 0:00:29]} 4. e3 {[%emt 0:00:44]}
Nf6 {[%emt 0:00:57]} 5. Nc3 {[%emt 0:05:32]} Qd8 {[%emt 0:06:38]} 6. Nf3 {
[%emt 0:02:15]} e6 {[%emt 0:01:30]} 7. Bc4 {[%emt 0:03:09]} Bb4 {[%emt 0:04:52]
} 8. O-O {[%emt 0:01:49]} Bxc3 {[%emt 0:04:50]} 9. bxc3 {[%emt 0:00:04]} O-O {
[%emt 0:04:25]} 10. Qc2 {[%emt 0:01:44]} Ne7 {[%emt 0:03:21]} 11. e4 {[%emt 0:
00:00]} Ng6 {[%emt 0:03:56]} 12. Rd1 {[%emt 0:04:56]} c6 {[%emt 0:00:32]} 13.
a4 {[%emt 0:03:05]} Qc7 {[%emt 0:03:05]} 14. Bg5 {[%emt 0:01:45]} Nh5 {[%emt 0:
00:00]} 15. e5 {[%emt 0:03:14]} c5 {[%emt 0:05:46]} 16. Rac1 {[%emt 0:05:04]}
b6 {[%emt 0:00:39]} 17. Qe4 {[%emt 0:01:30]} Bb7 {[%emt 0:02:11]} 18. Qg4 {
[%emt 0:00:28]} Bxf3 {[%emt 0:09:24]} 19. gxf3 {[%emt 0:02:45]} h6 {[%emt 0:00:
00]} 20. Be3 {[%emt 0:03:16]} cxd4 {[%emt 0:03:49]} 21. cxd4 {[%emt 0:00:14]}
Nxe5 {[%emt 0:04:30]} 22. dxe5 {[%emt 0:00:23]} Qxe5 {[%emt 0:00:18]} 23. Bd4 {
[%emt 0:01:11]} Qg5 {[%emt 0:01:37]} 24. h4 {[%emt 0:01:41]} Qxg4+ {[%emt 0:00:
00]} 25. fxg4 {[%emt 0:00:00]} Nf4 {[%emt 0:00:16]} 26. Be5 {[%emt 0:00:39]}
Ng6 {[%emt 0:00:18]} 27. Bg3 {[%emt 0:01:04]} Rac8 {[%emt 0:00:17]} 28. h5 {
[%emt 0:00:09]} Ne7 {[%emt 0:00:15]} 29. Bd6 {[%emt 0:00:15]} Rfd8 {[%emt 0:00:
00]} 30. f3 {[%emt 0:02:21]} Kh8 {[%emt 0:01:31]} 31. Kf2 {[%emt 0:01:40]} Ng8
{[%emt 0:00:15]} 32. Rd4 {[%emt 0:01:13]} Nf6 {[%emt 0:00:51]} 33. Rcd1 {
[%emt 0:00:33]} Ne8 {[%emt 0:03:23]} 34. Bf4 {[%emt 0:01:34]} Rxd4 {[%emt 0:00:
00]} 35. Rxd4 {[%emt 0:00:01]} Nf6 {[%emt 0:02:42]} 36. Be5 {[%emt 0:01:02]}
Ng8 {[%emt 0:01:37]} 37. Ba6 {[%emt 0:01:00]} Rc2+ {[%emt 0:01:36]} 38. Kg3 {
[%emt 0:00:09]} Rc5 {[%emt 0:00:17]} 39. Bd6 {[%emt 0:00:18]} Rd5 {[%emt 0:00:
00]} 40. Rxd5 {[%emt 0:00:23]} exd5 {[%emt 0:00:05]} 41. Bb8 {[%emt 0:30:10]}
Nf6 {[%emt 0:32:31]} 42. Bxa7 {[%emt 0:00:09]} Nd7 {[%emt 0:03:10]} 43. Bb5 {
[%emt 0:00:09]} Nc5 {[%emt 0:02:37]} 44. Bxb6 {[%emt 0:00:10]} Nb7 {[%emt 0:00:
00]} 45. Bc6 {[%emt 0:00:13]} Nd6 {[%emt 0:02:40]} 46. a5 {[%emt 0:00:15]} Kg8
{[%emt 0:00:20]} 47. a6 {[%emt 0:00:11]} Nc8 {[%emt 0:00:00]} 48. Bd4 {[%emt 0:
00:00]} 1-0

[Event "44th Chess Olympiad Women 2022"]
[Site "Chennai"]
[Date "2022.07.29"]
[Round "1.39"]
[White "Estur, Grace Co"]
[Black "San Diego, Marie Antoinette"]
[Result "0-1"]
[WhiteElo "1472"]
[BlackElo "2101"]
[Annotator "NA RC"]
[PlyCount "58"]
[EventDate "2022.??.??"]
[TimeControl "60"]

1. d4 {[%emt 0:00:04]} d5 {[%emt 0:00:08]} 2. g3 {[%emt 0:00:28]} Nf6 {[%emt 0:
00:00]} 3. Bg2 {[%emt 0:00:41]} Bf5 {[%emt 0:00:11]} 4. Nf3 {[%emt 0:01:27]} h6
{[%emt 0:00:16]} 5. O-O {[%emt 0:01:39]} e6 {[%emt 0:00:13]} 6. c3 {[%emt 0:00:
00]} Nbd7 {[%emt 0:01:04]} 7. Re1 {[%emt 0:06:48]} Be7 {[%emt 0:00:50]} 8. Nbd2
{[%emt 0:04:05]} O-O {[%emt 0:00:22]} 9. Ne5 {[%emt 0:04:00]} Nxe5 {[%emt 0:00:
00]} 10. dxe5 {[%emt 0:16:39]} Ng4 {[%emt 0:03:11]} 11. Nf3 {[%emt 0:03:07]}
Bc5 {[%emt 0:08:46]} 12. Nd4 {[%emt 0:09:11]} f6 {[%emt 0:09:54]} 13. e4 {
[%emt 0:15:30]} dxe4 {[%emt 0:03:00]} 14. Bxe4 {[%emt 0:08:03]} Nxf2 {[%emt 0:
00:00]} 15. Qh5 {[%emt 0:05:08]} Nxe4 {[%emt 0:00:57]} 16. Rxe4 {[%emt 0:01:07]
} Bxe4 {[%emt 0:00:18]} 17. Be3 {[%emt 0:03:34]} Bxd4 {[%emt 0:00:28]} 18. cxd4
{[%emt 0:00:26]} Qd5 {[%emt 0:01:05]} 19. Rc1 {[%emt 0:03:48]} c6 {[%emt 0:00:
00]} 20. b3 {[%emt 0:00:20]} Bf3 {[%emt 0:01:23]} 21. Qg6 {[%emt 0:00:38]} Bh1
{[%emt 0:00:29]} 22. Rc2 {[%emt 0:00:35]} Be4 {[%emt 0:00:29]} 23. Qg4 {
[%emt 0:01:48]} Bf5 {[%emt 0:01:10]} 24. Qh5 {[%emt 0:01:41]} Bxc2 {[%emt 0:00:
00]} 25. Bxh6 {[%emt 0:01:19]} Qxd4+ {[%emt 0:00:25]} 26. Kf1 {[%emt 0:00:43]}
fxe5+ {[%emt 0:01:02]} 27. Kg2 {[%emt 0:01:34]} Rf2+ {[%emt 0:00:39]} 28. Kh3 {
[%emt 0:01:00]} Bf5+ {[%emt 0:00:08]} 29. Qxf5 {[%emt 0:01:06]} exf5 {[%emt 0:
00:00]} 0-1

[Event "44th Chess Olympiad Women 2022"]
[Site "Chennai"]
[Date "2022.07.29"]
[Round "1.39"]
[White "Mendoza, Shania Mae"]
[Black "Nacario, Ruth"]
[Result "1-0"]
[WhiteElo "2153"]
[BlackElo "1552"]
[Annotator "ChessBase"]
[PlyCount "65"]
[EventDate "2022.??.??"]
[TimeControl "60"]

1. e4 {[%emt 0:00:14]} d6 {[%emt 0:00:12]} 2. d4 {[%emt 0:00:20]} Nf6 {[%emt 0:
00:00]} 3. Nc3 {[%emt 0:01:02]} g6 {[%emt 0:01:41]} 4. h3 {[%emt 0:00:57]} Bg7
{[%emt 0:01:32]} 5. Be3 {[%emt 0:02:30]} c6 {[%emt 0:03:12]} 6. g4 {[%emt 0:00:
00]} h6 {[%emt 0:05:21]} 7. Bg2 {[%emt 0:03:44]} Qc7 {[%emt 0:04:13]} 8. Nge2 {
[%emt 0:02:48]} Nbd7 {[%emt 0:04:11]} 9. Qd2 {[%emt 0:02:35]} e5 {[%emt 0:00:
00]} 10. f4 {[%emt 0:01:52]} Nb6 {[%emt 0:06:48]} 11. b3 {[%emt 0:03:47]} Bd7 {
[%emt 0:06:31]} 12. a4 {[%emt 0:05:46]} a5 {[%emt 0:03:56]} 13. O-O {[%emt 0:
00:00]} O-O-O {[%emt 0:03:15]} 14. Rab1 {[%emt 0:11:51]} c5 {[%emt 0:07:41]}
15. dxc5 {[%emt 0:04:35]} dxc5 {[%emt 0:03:03]} 16. Nd5 {[%emt 0:00:12]} Nbxd5
{[%emt 0:01:40]} 17. exd5 {[%emt 0:00:09]} Ne8 {[%emt 0:03:50]} 18. fxe5 {
[%emt 0:04:48]} Bxe5 {[%emt 0:06:53]} 19. Rxf7 {[%emt 0:01:09]} Nd6 {[%emt 0:
00:00]} 20. Rf2 {[%emt 0:00:28]} h5 {[%emt 0:02:49]} 21. g5 {[%emt 0:04:21]}
Rdf8 {[%emt 0:02:04]} 22. Rbf1 {[%emt 0:00:17]} Nf5 {[%emt 0:00:56]} 23. Bf4 {
[%emt 0:00:49]} Re8 {[%emt 0:03:18]} 24. Bxe5 {[%emt 0:04:31]} Qxe5 {[%emt 0:
00:00]} 25. Qxa5 {[%emt 0:02:09]} Ne3 {[%emt 0:03:54]} 26. d6 {[%emt 0:05:19]}
Qxd6 {[%emt 0:00:38]} 27. Rf6 {[%emt 0:01:05]} Qe5 {[%emt 0:01:30]} 28. Qa8+ {
[%emt 0:00:20]} Kc7 {[%emt 0:00:04]} 29. Qxb7+ {[%emt 0:00:27]} Kd8 {[%emt 0:
00:00]} 30. Qb6+ {[%emt 0:03:32]} Kc8 {[%emt 0:00:58]} 31. Bb7+ {[%emt 0:00:06]
} Kb8 {[%emt 0:00:15]} 32. Ba6+ {[%emt 0:00:16]} Ka8 {[%emt 0:00:52]} 33. Qb7#
{[%emt 0:00:07]} 1-0

[Event "44th Chess Olympiad Women 2022"]
[Site "Chennai"]
[Date "2022.07.29"]
[Round "1.39"]
[White "Ollet, Myra"]
[Black "Fronda, Jan Jodilyn"]
[Result "0-1"]
[WhiteElo "1480"]
[BlackElo "2181"]
[Annotator "NA RC"]
[PlyCount "54"]
[EventDate "2022.??.??"]
[TimeControl "60"]

1. d4 {[%emt 0:00:25]} Nf6 {[%emt 0:00:39]} 2. c4 {[%emt 0:00:52]} e6 {[%emt 0:
00:00]} 3. Nc3 {[%emt 0:00:48]} d5 {[%emt 0:00:07]} 4. c5 {[%emt 0:00:38]} c6 {
[%emt 0:01:32]} 5. Bf4 {[%emt 0:00:18]} Nbd7 {[%emt 0:00:31]} 6. Nf3 {[%emt 0:
00:00]} Be7 {[%emt 0:01:11]} 7. h3 {[%emt 0:01:07]} O-O {[%emt 0:01:01]} 8. e3
{[%emt 0:00:16]} Ne4 {[%emt 0:02:39]} 9. Bd3 {[%emt 0:02:01]} Nxc3 {[%emt 0:00:
00]} 10. bxc3 {[%emt 0:00:36]} b6 {[%emt 0:00:16]} 11. cxb6 {[%emt 0:00:43]}
axb6 {[%emt 0:00:31]} 12. O-O {[%emt 0:00:48]} Ba6 {[%emt 0:00:22]} 13. Re1 {
[%emt 0:01:52]} Bxd3 {[%emt 0:01:50]} 14. Qxd3 {[%emt 0:00:30]} Ra3 {[%emt 0:
00:00]} 15. Nd2 {[%emt 0:02:49]} Qa8 {[%emt 0:01:40]} 16. Qc2 {[%emt 0:01:54]}
c5 {[%emt 0:00:53]} 17. Nf3 {[%emt 0:04:24]} Rc8 {[%emt 0:01:09]} 18. Ne5 {
[%emt 0:31:32]} Nxe5 {[%emt 0:05:43]} 19. dxe5 {[%emt 0:07:52]} Qa5 {[%emt 0:
00:00]} 20. Rec1 {[%emt 0:05:12]} Ra8 {[%emt 0:02:19]} 21. Qb2 {[%emt 0:04:38]}
g5 {[%emt 0:13:19]} 22. Bg3 {[%emt 0:02:22]} Rxa2 {[%emt 0:01:13]} 23. Rxa2 {
[%emt 0:00:23]} Qxa2 {[%emt 0:00:06]} 24. Qxb6 {[%emt 0:00:15]} h5 {[%emt 0:00:
00]} 25. f4 {[%emt 0:06:34]} Qd2 {[%emt 0:00:34]} 26. Re1 {[%emt 0:02:55]} Ra2
{[%emt 0:00:12]} 27. Qb8+ {[%emt 0:03:27]} Kg7 {[%emt 0:00:12]} 0-1

[Event "44th Chess Olympiad Women 2022"]
[Site "Chennai"]
[Date "2022.07.29"]
[Round "1.40"]
[White "Campos, Maria Jose"]
[Black "Mpinganjira, Ellen"]
[Result "1-0"]
[WhiteElo "2185"]
[BlackElo "1334"]
[Annotator "ChessBase"]
[PlyCount "73"]
[EventDate "2022.??.??"]
[TimeControl "60"]

1. c4 {[%emt 0:00:21]} c5 {[%emt 0:00:41]} 2. g3 {[%emt 0:00:27]} d6 {[%emt 0:
00:00]} 3. Bg2 {[%emt 0:00:07]} Nf6 {[%emt 0:02:05]} 4. Nc3 {[%emt 0:00:24]} e6
{[%emt 0:02:00]} 5. Nf3 {[%emt 0:02:44]} Be7 {[%emt 0:03:20]} 6. O-O {[%emt 0:
00:00]} O-O {[%emt 0:01:43]} 7. d4 {[%emt 0:02:33]} cxd4 {[%emt 0:01:18]} 8.
Nxd4 {[%emt 0:00:48]} Nbd7 {[%emt 0:02:42]} 9. Qd2 {[%emt 0:04:35]} Qc7 {
[%emt 0:05:05]} 10. b3 {[%emt 0:03:33]} a6 {[%emt 0:07:55]} 11. Rd1 {[%emt 0:
00:00]} Rb8 {[%emt 0:04:00]} 12. Ba3 {[%emt 0:04:11]} Rd8 {[%emt 0:05:49]} 13.
Rac1 {[%emt 0:02:52]} Nf8 {[%emt 0:08:48]} 14. Qb2 {[%emt 0:12:49]} Ng6 {
[%emt 0:07:08]} 15. Bb4 {[%emt 0:05:47]} e5 {[%emt 0:02:32]} 16. Nc2 {[%emt 0:
00:00]} b6 {[%emt 0:01:58]} 17. Ne3 {[%emt 0:02:29]} Be6 {[%emt 0:15:41]} 18.
Ncd5 {[%emt 0:01:08]} Bxd5 {[%emt 0:04:24]} 19. cxd5 {[%emt 0:00:20]} Qa7 {
[%emt 0:00:57]} 20. Rc6 {[%emt 0:03:52]} a5 {[%emt 0:03:33]} 21. Bd2 {[%emt 0:
00:00]} Ne8 {[%emt 0:04:16]} 22. Rdc1 {[%emt 0:05:30]} h5 {[%emt 0:04:52]} 23.
Nf5 {[%emt 0:03:56]} Bf6 {[%emt 0:01:42]} 24. Qc2 {[%emt 0:01:41]} Ne7 {
[%emt 0:01:35]} 25. Nxe7+ {[%emt 0:00:13]} Bxe7 {[%emt 0:00:11]} 26. Be3 {
[%emt 0:00:33]} Nf6 {[%emt 0:03:15]} 27. Rc7 {[%emt 0:05:15]} Rb7 {[%emt 0:00:
00]} 28. Qc6 {[%emt 0:01:58]} Rdb8 {[%emt 0:01:43]} 29. Rxb7 Rxb7 30. Qc8+ {
[%emt 0:02:29]} Kh7 {[%emt 0:00:16]} 31. Rc6 {[%emt 0:01:13]} Rb8 {[%emt 0:00:
00]} 32. Rc7 {[%emt 0:04:47]} Rxc8 {[%emt 0:00:56]} 33. Rxa7 {[%emt 0:00:06]}
Bd8 {[%emt 0:00:25]} 34. Rxf7 {[%emt 0:00:38]} Bc7 {[%emt 0:01:32]} 35. Bh3 {
[%emt 0:01:32]} Kg8 {[%emt 0:00:39]} 36. Rxf6 {[%emt 0:00:14]} gxf6 {[%emt 0:
00:00]} 37. Bxc8 {[%emt 0:00:11]} 1-0

[Event "44th Chess Olympiad Women 2022"]
[Site "Chennai"]
[Date "2022.07.29"]
[Round "1.40"]
[White "Jambo, Linda"]
[Black "Borda Rodas, Anapaola S."]
[Result "0-1"]
[WhiteElo "1426"]
[BlackElo "2183"]
[Annotator "NA RC"]
[PlyCount "56"]
[EventDate "2022.??.??"]
[TimeControl "60"]

1. e4 {[%emt 0:00:13]} e5 {[%emt 0:00:17]} 2. Nf3 {[%emt 0:00:12]} Nc6 {
[%emt 0:00:17]} 3. Bb5 {[%emt 0:00:37]} a6 {[%emt 0:00:17]} 4. Ba4 {[%emt 0:00:
00]} Nf6 {[%emt 0:00:31]} 5. O-O {[%emt 0:03:06]} b5 {[%emt 0:00:42]} 6. Bb3 {
[%emt 0:00:29]} Bc5 {[%emt 0:00:53]} 7. d3 {[%emt 0:10:03]} d6 {[%emt 0:02:36]}
8. h3 {[%emt 0:00:23]} h6 {[%emt 0:00:57]} 9. a3 {[%emt 0:00:20]} O-O {[%emt 0:
00:00]} 10. Re1 {[%emt 0:00:29]} Re8 {[%emt 0:03:02]} 11. Be3 {[%emt 0:07:24]}
Be6 {[%emt 0:08:55]} 12. Bxe6 {[%emt 0:03:17]} Rxe6 {[%emt 0:00:25]} 13. Bxc5 {
[%emt 0:00:14]} dxc5 {[%emt 0:00:06]} 14. c3 {[%emt 0:05:20]} Rd6 {[%emt 0:00:
00]} 15. Re3 {[%emt 0:06:15]} c4 {[%emt 0:01:12]} 16. d4 {[%emt 0:01:49]} exd4
{[%emt 0:00:09]} 17. cxd4 {[%emt 0:04:46]} Nxd4 {[%emt 0:00:23]} 18. e5 {
[%emt 0:01:33]} Nxf3+ {[%emt 0:01:35]} 19. Qxf3 {[%emt 0:03:00]} Rd1+ {[%emt 0:
00:00]} 20. Kh2 {[%emt 0:00:55]} Nh7 {[%emt 0:00:46]} 21. b3 {[%emt 0:26:52]}
Ng5 {[%emt 0:00:57]} 22. Qe2 {[%emt 0:02:27]} Qd4 {[%emt 0:01:57]} 23. bxc4 {
[%emt 0:03:51]} Rd8 {[%emt 0:00:45]} 24. Qa2 {[%emt 0:02:32]} Qf4+ {[%emt 0:00:
00]} 25. Rg3 {[%emt 0:03:31]} Ne4 {[%emt 0:00:16]} 26. cxb5 {[%emt 0:05:14]}
Nxg3 {[%emt 0:00:31]} 27. fxg3 {[%emt 0:00:11]} Qf1 {[%emt 0:00:08]} 28. g4 {
[%emt 0:00:30]} R8d3 {[%emt 0:00:19]} 0-1

[Event "44th Chess Olympiad Women 2022"]
[Site "Chennai"]
[Date "2022.07.29"]
[Round "1.40"]
[White "Msukwa, Tupokiwe"]
[Black "Besso, Guadalupe"]
[Result "1/2-1/2"]
[WhiteElo "1369"]
[BlackElo "2059"]
[Annotator "NA"]
[PlyCount "62"]
[EventDate "2022.??.??"]
[TimeControl "60"]

1. d4 {[%emt 0:00:03]} Nf6 {[%emt 0:00:15]} 2. c4 {[%emt 0:00:09]} g6 {[%emt 0:
00:00]} 3. Nc3 {[%emt 0:00:16]} d5 {[%emt 0:00:55]} 4. Bf4 {[%emt 0:01:32]} Bg7
{[%emt 0:00:30]} 5. Nf3 {[%emt 0:01:09]} O-O {[%emt 0:05:10]} 6. e3 {[%emt 0:
00:00]} c5 {[%emt 0:03:41]} 7. Be2 {[%emt 0:03:25]} cxd4 {[%emt 0:01:20]} 8.
exd4 {[%emt 0:00:07]} Nc6 {[%emt 0:00:34]} 9. O-O {[%emt 0:04:24]} Bg4 {
[%emt 0:22:02]} 10. Be3 {[%emt 0:09:05]} dxc4 {[%emt 0:09:12]} 11. Bxc4 {
[%emt 0:00:09]} Rc8 {[%emt 0:09:17]} 12. Be2 {[%emt 0:06:37]} Nd5 {[%emt 0:00:
00]} 13. h3 {[%emt 0:04:35]} Bxf3 {[%emt 0:03:49]} 14. Bxf3 {[%emt 0:00:14]}
Nxe3 {[%emt 0:00:24]} 15. fxe3 {[%emt 0:00:09]} Bh6 {[%emt 0:00:46]} 16. Qe2 {
[%emt 0:01:37]} Na5 {[%emt 0:00:18]} 17. Rfd1 {[%emt 0:14:36]} Nc4 {[%emt 0:00:
00]} 18. Rd3 {[%emt 0:02:47]} Qd7 {[%emt 0:06:28]} 19. e4 {[%emt 0:12:01]} Rcd8
{[%emt 0:13:14]} 20. Nd5 {[%emt 0:06:55]} Nb6 {[%emt 0:00:55]} 21. Nxb6 {
[%emt 0:00:32]} axb6 {[%emt 0:00:02]} 22. Rad1 {[%emt 0:02:46]} Ra8 {[%emt 0:
00:00]} 23. a3 {[%emt 0:00:22]} Bf4 {[%emt 0:04:25]} 24. e5 {[%emt 0:00:33]}
Bh6 {[%emt 0:03:23]} 25. Qe4 {[%emt 0:00:27]} Rab8 {[%emt 0:00:15]} 26. Qd5 {
[%emt 0:01:33]} Qxd5 {[%emt 0:02:27]} 27. Bxd5 {[%emt 0:00:03]} Rfd8 {[%emt 0:
00:00]} 28. Bf3 {[%emt 0:00:04]} Bf4 {[%emt 0:00:49]} 29. Kf1 {[%emt 0:00:44]}
e6 {[%emt 0:00:21]} 30. Ke2 {[%emt 0:00:27]} Rd7 {[%emt 0:00:47]} 31. Be4 {
[%emt 0:00:43]} Rbd8 {[%emt 0:00:36]} 1/2-1/2

[Event "44th Chess Olympiad Women 2022"]
[Site "Chennai"]
[Date "2022.07.29"]
[Round "1.40"]
[White "Sarquis, Maria Belen"]
[Black "Banda Tapiwa"]
[Result "1-0"]
[WhiteElo "2072"]
[BlackElo "1238"]
[Annotator "NA RC"]
[PlyCount "59"]
[EventDate "2022.??.??"]
[TimeControl "60"]

1. e4 {[%emt 0:00:04]} e5 {[%emt 0:00:10]} 2. Nf3 {[%emt 0:00:08]} d6 {[%emt 0:
00:00]} 3. d4 {[%emt 0:02:35]} f6 {[%emt 0:04:23]} 4. Bc4 {[%emt 0:01:59]} Nc6
{[%emt 0:05:10]} 5. c3 {[%emt 0:06:09]} Na5 {[%emt 0:00:17]} 6. Bd3 {[%emt 0:
00:00]} a6 {[%emt 0:00:56]} 7. Qa4+ {[%emt 0:08:08]} c6 {[%emt 0:00:05]} 8. b4
{[%emt 0:00:18]} b5 {[%emt 0:00:16]} 9. Qxa5 {[%emt 0:00:17]} Qxa5 {[%emt 0:00:
00]} 10. bxa5 {[%emt 0:00:07]} Be7 {[%emt 0:00:32]} 11. Nbd2 {[%emt 0:02:10]}
Be6 {[%emt 0:00:17]} 12. O-O {[%emt 0:02:55]} Bd8 {[%emt 0:00:06]} 13. Nb3 {
[%emt 0:00:42]} Bc4 {[%emt 0:01:43]} 14. Rd1 {[%emt 0:01:12]} Ne7 {[%emt 0:00:
00]} 15. Be3 {[%emt 0:05:12]} Bc7 {[%emt 0:02:42]} 16. Bf1 {[%emt 0:02:29]} d5
{[%emt 0:00:56]} 17. dxe5 {[%emt 0:04:53]} Bxb3 {[%emt 0:04:59]} 18. axb3 {
[%emt 0:00:16]} dxe4 {[%emt 0:00:17]} 19. exf6 {[%emt 0:02:34]} exf3 {[%emt 0:
00:00]} 20. fxe7 {[%emt 0:00:10]} Kxe7 {[%emt 0:01:23]} 21. Bc5+ {[%emt 0:00:
00]} Kf7 {[%emt 0:00:24]} 22. Rd7+ {[%emt 0:00:12]} Ke6 {[%emt 0:10:28]} 23.
Rxc7 {[%emt 0:00:20]} g6 {[%emt 0:00:11]} 24. Rd1 {[%emt 0:01:17]} Rad8 {
[%emt 0:02:45]} 25. Rxc6+ {[%emt 0:00:00]} Kf7 {[%emt 0:00:40]} 26. Rxd8 {
[%emt 0:00:13]} Rxd8 {[%emt 0:00:04]} 27. Rd6 {[%emt 0:00:42]} Rxd6 {[%emt 0:
00:00]} 28. Bxd6 {[%emt 0:00:07]} Ke6 {[%emt 0:00:16]} 29. Bb4 {[%emt 0:00:15]}
Kd5 {[%emt 0:00:42]} 30. c4+ {[%emt 0:00:10]} 1-0

[Event "44th Chess Olympiad Women 2022"]
[Site "Chennai"]
[Date "2022.07.29"]
[Round "1.41"]
[White "Ibtihal Mohammed"]
[Black "Aydin, Gulenay"]
[Result "0-1"]
[WhiteElo "1445"]
[BlackElo "2100"]
[Annotator "NA RC"]
[PlyCount "76"]
[EventDate "2022.??.??"]
[TimeControl "60"]

1. e4 {[%emt 0:00:04]} c5 {[%emt 0:00:07]} 2. Nf3 {[%emt 0:00:36]} d6 {[%emt 0:
00:00]} 3. g3 {[%emt 0:00:06]} Nc6 {[%emt 0:00:47]} 4. Bg2 {[%emt 0:00:26]} Nf6
{[%emt 0:00:31]} 5. d3 {[%emt 0:00:57]} g6 {[%emt 0:00:10]} 6. O-O {[%emt 0:00:
00]} Bg7 {[%emt 0:00:15]} 7. Re1 {[%emt 0:00:43]} O-O {[%emt 0:00:23]} 8. Nbd2
{[%emt 0:02:34]} Rb8 {[%emt 0:00:24]} 9. a4 {[%emt 0:02:09]} a6 {[%emt 0:00:30]
} 10. Nc4 {[%emt 0:25:07]} b5 {[%emt 0:03:03]} 11. axb5 {[%emt 0:01:14]} axb5 {
[%emt 0:00:02]} 12. Ne3 {[%emt 0:00:08]} Re8 {[%emt 0:12:40]} 13. h3 {[%emt 0:
00:00]} Bd7 {[%emt 0:04:35]} 14. Bd2 {[%emt 0:02:30]} e5 {[%emt 0:09:49]} 15.
Qc1 {[%emt 0:11:08]} Rf8 {[%emt 0:11:50]} 16. g4 {[%emt 0:03:58]} Nd4 {[%emt 0:
00:00]} 17. Nh2 {[%emt 0:12:24]} Bh6 {[%emt 0:13:35]} 18. Nhf1 {[%emt 0:04:02]}
Ne6 {[%emt 0:05:17]} 19. Nd5 {[%emt 0:07:16]} Bxd2 {[%emt 0:00:37]} 20. Nxf6+ {
[%emt 0:00:10]} Qxf6 {[%emt 0:00:07]} 21. Qxd2 {[%emt 0:00:09]} Nf4 {[%emt 0:
00:00]} 22. Ne3 {[%emt 0:00:21]} Be6 {[%emt 0:02:48]} 23. Ra6 {[%emt 0:01:38]}
Rfd8 {[%emt 0:00:40]} 24. Kh2 {[%emt 0:01:11]} Kg7 {[%emt 0:01:41]} 25. Rh1 {
[%emt 0:00:20]} h5 {[%emt 0:04:02]} 26. f3 {[%emt 0:04:05]} Ra8 {[%emt 0:05:16]
} 27. Rxa8 {[%emt 0:02:47]} Rxa8 {[%emt 0:00:04]} 28. Nf1 {[%emt 0:01:41]} Qh4
{[%emt 0:03:16]} 29. Kg1 {[%emt 0:01:02]} Ra1 {[%emt 0:00:45]} 30. Qf2 {
[%emt 0:00:14]} Qxf2+ {[%emt 0:00:55]} 31. Kxf2 {[%emt 0:00:08]} Ra2 {[%emt 0:
00:00]} 32. Ne3 {[%emt 0:00:27]} Rxb2 {[%emt 0:00:35]} 33. Ra1 {[%emt 0:00:47]}
Nxd3+ {[%emt 0:01:01]} 34. Kg3 {[%emt 0:01:41]} Nf4 {[%emt 0:07:58]} 35. Rd1 {
[%emt 0:01:20]} hxg4 {[%emt 0:00:14]} 36. hxg4 {[%emt 0:00:12]} Ne2+ {[%emt 0:
00:00]} 37. Kh2 {[%emt 0:00:19]} Nd4 {[%emt 0:00:11]} 38. c3 {[%emt 0:00:23]}
Nxf3+ {[%emt 0:00:06]} 0-1

[Event "44th Chess Olympiad Women 2022"]
[Site "Chennai"]
[Date "2022.07.29"]
[Round "1.41"]
[White "Okuyaz, Duru"]
[Black "Marwa, Jadalla"]
[Result "1-0"]
[WhiteElo "2090"]
[BlackElo "1316"]
[Annotator "NA RC"]
[PlyCount "40"]
[EventDate "2022.??.??"]
[TimeControl "60"]

1. e4 {[%emt 0:00:01]} c5 {[%emt 0:00:11]} 2. Nf3 {[%emt 0:00:07]} Nc6 {
[%emt 0:00:10]} 3. d4 {[%emt 0:00:10]} cxd4 {[%emt 0:00:07]} 4. Nxd4 {[%emt 0:
00:00]} g6 {[%emt 0:00:17]} 5. c4 {[%emt 0:00:10]} Nf6 {[%emt 0:00:37]} 6. Nc3
{[%emt 0:00:11]} Qb6 {[%emt 0:07:55]} 7. Be3 {[%emt 0:08:51]} Qa5 {[%emt 0:00:
00]} 8. Nb3 {[%emt 0:04:10]} Qd8 {[%emt 0:02:26]} 9. Be2 {[%emt 0:00:35]} Bg7 {
[%emt 0:00:16]} 10. O-O {[%emt 0:00:56]} O-O {[%emt 0:00:09]} 11. f3 {[%emt 0:
00:00]} d6 {[%emt 0:06:03]} 12. Nd5 {[%emt 0:00:55]} b6 {[%emt 0:02:24]} 13.
Qd2 {[%emt 0:01:04]} Re8 {[%emt 0:01:18]} 14. a4 {[%emt 0:02:16]} Bb7 {[%emt 0:
00:00]} 15. a5 {[%emt 0:04:18]} bxa5 {[%emt 0:06:49]} 16. Nxa5 {[%emt 0:00:16]}
Nxa5 {[%emt 0:00:38]} 17. Rxa5 {[%emt 0:00:22]} Nxd5 {[%emt 0:01:37]} 18. cxd5
{[%emt 0:00:51]} a6 {[%emt 0:01:10]} 19. Rfa1 {[%emt 0:01:49]} Qd7 {[%emt 0:00:
00]} 20. Bxa6 {[%emt 0:07:26]} Bxa6 {[%emt 0:00:00]} 1-0

[Event "44th Chess Olympiad Women 2022"]
[Site "Chennai"]
[Date "2022.07.29"]
[Round "1.41"]
[White "Rayan Sedee Mohamed"]
[Black "Onur, Cigdem"]
[Result "0-1"]
[WhiteElo "1168"]
[BlackElo "2000"]
[Annotator "NA RC"]
[PlyCount "64"]
[EventDate "2022.??.??"]
[TimeControl "60"]

1. e4 {[%emt 0:00:10]} c5 {[%emt 0:00:18]} 2. Nf3 {[%emt 0:00:51]} e6 {[%emt 0:
00:00]} 3. g3 {[%emt 0:03:16]} d5 {[%emt 0:00:47]} 4. exd5 {[%emt 0:06:27]}
exd5 {[%emt 0:01:24]} 5. Bg2 {[%emt 0:01:28]} Nf6 {[%emt 0:01:40]} 6. d3 {
[%emt 0:04:36]} Be7 {[%emt 0:01:10]} 7. O-O {[%emt 0:00:12]} Nc6 {[%emt 0:00:
00]} 8. c3 {[%emt 0:02:17]} Bg4 {[%emt 0:15:15]} 9. Re1 {[%emt 0:08:17]} O-O {
[%emt 0:07:44]} 10. Nbd2 {[%emt 0:06:20]} Re8 {[%emt 0:10:47]} 11. h3 {[%emt 0:
00:00]} Bh5 {[%emt 0:04:28]} 12. Nf1 {[%emt 0:16:46]} d4 {[%emt 0:28:07]} 13.
Qc2 {[%emt 0:10:32]} dxc3 {[%emt 0:14:32]} 14. bxc3 {[%emt 0:13:26]} Bg6 {
[%emt 0:01:11]} 15. Rd1 {[%emt 0:01:47]} c4 {[%emt 0:03:44]} 16. Qd2 {[%emt 0:
00:00]} Bxd3 {[%emt 0:01:35]} 17. Ne1 {[%emt 0:04:22]} Bxf1 {[%emt 0:01:07]}
18. Kxf1 {[%emt 0:00:19]} Qc7 {[%emt 0:01:12]} 19. Qc2 {[%emt 0:01:50]} Rad8 {
[%emt 0:00:40]} 20. Bf4 {[%emt 0:00:44]} Bd6 {[%emt 0:00:48]} 21. Bxd6 {
[%emt 0:01:09]} Rxd6 {[%emt 0:00:04]} 22. Nf3 {[%emt 0:01:35]} Rde6 {[%emt 0:
00:00]} 23. Ng5 {[%emt 0:01:38]} Re5 {[%emt 0:00:17]} 24. Nf3 {[%emt 0:00:39]}
R5e7 {[%emt 0:00:30]} 25. h4 {[%emt 0:00:14]} h6 {[%emt 0:00:57]} 26. Nd4 {
[%emt 0:00:50]} Nxd4 {[%emt 0:00:47]} 27. cxd4 {[%emt 0:00:03]} c3 {[%emt 0:00:
00]} 28. Rab1 {[%emt 0:00:26]} Qc4+ {[%emt 0:00:13]} 29. Kg1 {[%emt 0:00:50]}
Re2 {[%emt 0:00:42]} 30. Bf1 {[%emt 0:00:48]} Qxa2 {[%emt 0:00:51]} 31. Qxc3 {
[%emt 0:00:31]} Rxf2 {[%emt 0:00:19]} 32. Rd2 {[%emt 0:00:30]} Qxd2 {[%emt 0:
00:00]} 0-1